bitfinex/quotes_SOLUSD_20251127
["timestamp","ask_amount","ask_price","bid_price","bid_amount"]
[1764247143564,0.7,141.45,141.42,7.07113562]
[1764247143771,0.7,141.45,141.42,10.42916389]
[1764247144070,1.4,141.44,141.41,10.42942069]
[1764247144251,2.1,141.43,141.41,10.42942069]
[1764247144973,0.7,141.42,141.41,10.42942069]
[1764247145265,0.7,141.42,141.4,10.43001062]
[1764247145572,0.7,141.42,141.39,61.4214402]
[1764247145775,0.7,141.42,141.39,41.75454793]
[1764247146150,4.05802827,141.42,141.39,41.75454793]
[1764247146345,11.12938766,141.42,141.39,41.75454793]
[1764247146556,0.7,141.41,141.39,41.75454793]
[1764247146963,3.82,141.41,141.39,41.75454793]
[1764247147370,0.7,141.4,141.39,48.82716555]
[1764247147673,0.7,141.4,141.39,41.75454793]
[1764247147871,0.7,141.4,141.39,48.8271839]
[1764247148372,3.12,141.41,141.39,48.8271839]
[1764247148555,3.12,141.41,141.39,52.18521217]
[1764247148750,3.12,141.41,141.39,50.27428967]
[1764247148949,0.7,141.4,141.39,39.84362543]
[1764247149152,4.05802827,141.4,141.39,39.84362543]
[1764247149353,0.7,141.4,141.39,39.84362543]
[1764247151290,3.82,141.4,141.39,39.84362543]
[1764247151860,3.82,141.4,141.39,38.14040083]
[1764247152985,0.7,141.4,141.39,48.57106507]
[1764247154864,0.7,141.4,141.39,42.61484676]
[1764247156690,1.4,141.42,141.39,63.65446495]
[1764247156877,0.67,141.41,141.4,3.35802827]
[1764247157884,0.67,141.41,141.4,2.19503901]
[1764247158290,0.67,141.42,141.4,2.19503901]
[1764247159085,0.67,141.42,141.4,9.26685002]
[1764247160872,0.88370448,141.45,141.4,24.75215047]
[1764247160873,1.55370448,141.45,141.4,24.75215047]
[1764247161075,0.67,141.46,141.44,10.42800977]
[1764247161496,0.67,141.46,141.45,3.35802827]
[1764247162092,0.67,141.46,141.44,10.42800977]
[1764247163599,0.67,141.46,141.45,3.35802827]
[1764247163979,0.67,141.46,141.45,0.91685445]
[1764247164612,1.55364201,141.46,141.41,7.07155519]
[1764247164816,3.12,141.45,141.43,3.35802827]
[1764247165111,0.67,141.45,141.43,3.35802827]
[1764247165419,0.67,141.45,141.43,10.42829493]
[1764247166997,0.67,141.45,141.43,8.43478707]
[1764247168309,0.67,141.46,141.44,3.35802827]
[1764247168707,0.67,141.46,141.43,24.74685578]
[1764247168899,0.67,141.46,141.43,28.10488405]
[1764247170005,0.67,141.46,141.43,21.03461739]
[1764247170204,0.67,141.46,141.43,16.308864]
[1764247170404,0.67,141.46,141.43,19.66689227]
[1764247170823,0.67,141.46,141.44,3.35802827]
[1764247171407,0.67,141.46,141.45,7.06963591]
[1764247171932,0.67,141.48,141.45,10.42766418]
[1764247172105,0.67,141.48,141.46,3.35802827]
[1764247172904,0.67,141.49,141.47,3.35802827]
[1764247173103,0.67,141.49,141.45,23.572392]
[1764247173305,0.67,141.49,141.47,3.35802827]
[1764247173514,0.67,141.49,141.47,7.06863646]
[1764247173900,0.67,141.49,141.47,10.42666473]
[1764247176205,0.67,141.49,141.48,2.11371623]
[1764247176623,0.67,141.49,141.47,7.06863646]
[1764247176812,0.67,141.49,141.48,3.35802827]
[1764247177016,0.67,141.5,141.48,3.35802827]
[1764247177911,4.52,141.51,141.48,10.42598595]
[1764247178114,0.67,141.49,141.48,10.42598595]
[1764247178725,0.67,141.49,141.48,9.21757033]
[1764247179434,2.81961265,141.49,141.44,2.14961265]
[1764247179603,2.14961265,141.47,141.43,18.45847665]
[1764247179810,5.26961265,141.47,141.43,18.45847665]
[1764247180002,0.72,141.46,141.43,18.45847665]
[1764247180207,0.72,141.46,141.45,2.14961265]
[1764247180832,0.72,141.46,141.43,16.308864]
[1764247180833,0.72,141.46,141.44,2.14961265]
[1764247182625,0.72,141.46,141.45,9.21924856]
[1764247182807,0.72,141.46,141.45,2.14961265]
[1764247183008,0.72,141.46,141.44,2.14961265]
[1764247184206,0.72,141.46,141.43,33.98545312]
[1764247184408,0.72,141.48,141.45,2.14961265]
[1764247184609,0.72,141.48,141.47,2.14961265]
[1764247185913,0.72,141.48,141.46,7.06913615]
[1764247185914,0.72,141.48,141.46,8.58325539]
[1764247188718,0.72,141.48,141.46,6.43364274]
[1764247189040,0.72,141.48,141.45,2.14961265]
[1764247190211,0.72,141.48,141.45,9.21924856]
[1764247192028,0.72,141.48,141.45,7.52736937]
[1764247195142,0.72,141.48,141.45,8.12788758]
[1764247196939,0.72,141.48,141.45,5.97827493]
[1764247198143,7.7881749,141.48,141.44,2.14961265]
[1764247198346,9.93778755,141.48,141.44,2.14961265]
[1764247198544,0.72,141.47,141.44,2.14961265]
[1764247198923,0.72,141.47,141.43,3.12]
[1764247199241,0.72,141.47,141.44,2.14961265]
[1764247200345,7.78872544,141.47,141.44,7.07013574]
[1764247200527,7.78872544,141.47,141.44,9.21974839]
[1764247200727,0.72,141.46,141.44,9.21974839]
[1764247201117,0.72,141.46,141.44,6.02940393]
[1764247201330,0.72,141.46,141.44,8.17901658]
[1764247204123,0.72,141.46,141.44,2.14961265]
[1764247205423,0.72,141.46,141.44,9.21974839]
[1764247207147,0.72,141.46,141.44,8.10409609]
[1764247207446,0.72,141.46,141.43,9.22005904]
[1764247208623,0.72,141.46,141.43,7.07044639]
[1764247210251,0.72,141.46,141.43,5.82368556]
[1764247212132,0.72,141.46,141.43,2.14961265]
[1764247212439,3.84,141.46,141.43,2.14961265]
[1764247212749,0.7,141.45,141.43,2.14961265]
[1764247214255,0.7,141.45,141.43,9.21999328]
[1764247214457,0.7,141.45,141.43,7.07038063]
[1764247214659,0.7,141.45,141.43,9.21999328]
[1764247215368,7.76970088,141.45,141.4,23.3808088]
[1764247215535,2.14961265,141.44,141.39,44.76439776]
[1764247215857,2.80961265,141.44,141.39,44.76439776]
[1764247216061,0.66,141.43,141.4,2.14961265]
[1764247216260,0.66,141.43,141.39,44.76439776]
[1764247216560,2.14961265,141.41,141.39,33.07388015]
[1764247217066,2.80961265,141.4,141.39,33.07388015]
[1764247218060,5.92961265,141.4,141.39,33.07388015]
[1764247218546,2.80961265,141.4,141.39,33.07388015]
[1764247218752,5.92961265,141.4,141.39,33.07388015]
[1764247219055,0.66,141.4,141.39,33.07388015]
[1764247219244,0.66,141.4,141.39,35.2234928]
[1764247219644,0.66,141.4,141.39,31.03313739]
[1764247222046,0.66,141.41,141.39,31.03313739]
[1764247222443,0.66,141.41,141.39,40.25535066]
[1764247222752,0.66,141.41,141.39,36.57908682]
[1764247223270,0.66,141.41,141.39,29.5064754]
[1764247225178,10.85175909,141.41,141.39,29.5064754]
[1764247225338,9.88137174,141.41,141.39,29.5064754]
[1764247225538,0.66,141.4,141.39,29.5064754]
[1764247225766,0.66,141.4,141.39,27.26541244]
[1764247228949,0.66,141.4,141.39,26.18576327]
[1764247231179,3.78,141.4,141.39,26.18576327]
[1764247231872,3.78,141.4,141.39,23.71407472]
[1764247234991,3.78,141.4,141.39,22.20317781]
[1764247236679,10.85213578,141.4,141.39,22.20317781]
[1764247236992,0.66,141.43,141.39,31.42542643]
[1764247237298,0.66,141.42,141.41,2.14961265]
[1764247237682,0.66,141.42,141.4,2.14961265]
[1764247238195,0.66,141.42,141.39,30.9153737]
[1764247238695,0.66,141.42,141.39,32.1288005]
[1764247240594,0.66,141.42,141.39,28.76576105]
[1764247241109,0.66,141.42,141.39,27.53318183]
[1764247241297,4.9069314,141.42,141.39,20.46068973]
[1764247241500,4.02303945,141.42,141.39,20.46068973]
[1764247241688,0.67,141.41,141.39,20.46068973]
[1764247242285,3.12,141.4,141.39,20.46068973]
[1764247242707,3.79,141.4,141.39,20.46068973]
[1764247244093,7.15303945,141.4,141.39,17.76011746]
[1764247245388,3.79,141.4,141.39,17.76011746]
[1764247247185,3.79,141.4,141.39,16.61573359]
[1764247248614,14.22517523,141.4,141.39,16.61573359]
[1764247249511,15.62517523,141.4,141.39,16.61573359]
[1764247249894,12.26213578,141.4,141.39,16.61573359]
[1764247250216,15.62517523,141.4,141.39,14.23901138]
[1764247252604,12.50517523,141.4,141.39,14.23901138]
[1764247252792,16.5091922,141.4,141.39,14.23901138]
[1764247252988,15.62517523,141.4,141.39,14.23901138]
[1764247253393,15.62517523,141.4,141.39,11.89486988]
[1764247255203,14.22517523,141.4,141.39,11.89486988]
[1764247256521,14.22517523,141.4,141.39,10.66876872]
[1764247256837,10.86213578,141.4,141.39,10.66876872]
[1764247257130,14.22517523,141.4,141.39,10.66876872]
[1764247259405,14.22517523,141.4,141.39,8.8419944]
[1764247262443,14.22517523,141.4,141.39,6.41399758]
[1764247262921,10.86213578,141.4,141.39,6.41399758]
[1764247263119,0.67,141.4,141.39,6.41399758]
[1764247263341,3.79,141.4,141.39,6.41399758]
[1764247264154,10.86213578,141.4,141.39,6.41399758]
[1764247264443,14.22517523,141.4,141.39,6.41399758]
[1764247265524,14.22517523,141.4,141.39,4.33107909]
[1764247267968,4.03303945,141.4,141.39,4.33107909]
[1764247268129,33.89707868,141.4,141.38,64.01515152]
[1764247268457,3.12,141.39,141.38,64.01515152]
[1764247268652,3.12,141.39,141.38,61.36844257]
[1764247268957,6.48303945,141.39,141.38,61.36844257]
[1764247269343,7.15303945,141.39,141.38,61.36844257]
[1764247270546,0.67,141.39,141.38,61.36844257]
[1764247270745,3.79,141.39,141.38,61.36844257]
[1764247271330,0.67,141.39,141.38,61.36844257]
[1764247271662,3.79,141.39,141.38,59.83265282]
[1764247271856,3.12,141.39,141.38,59.83265282]
[1764247272171,1.60395445,141.41,141.38,59.83265282]
[1764247272337,11.8432832,141.43,141.39,4.08303945]
[1764247272537,3.12,141.42,141.39,4.08303945]
[1764247272749,3.12,141.42,141.4,0.72]
[1764247274736,3.12,141.42,141.39,9.13455753]
[1764247274938,3.12,141.42,141.39,2.06192651]
[1764247275245,3.83,141.42,141.39,2.06192651]
[1764247275854,3.83,141.42,141.38,59.83265282]
[1764247276056,3.12,141.42,141.39,3.36303945]
[1764247276555,3.12,141.42,141.38,66.90573495]
[1764247276758,3.12,141.42,141.39,3.36303945]
[1764247277857,3.12,141.42,141.38,84.58857552]
[1764247278053,3.12,141.42,141.39,3.36303945]
[1764247279058,3.83,141.42,141.39,3.36303945]
[1764247279969,3.83,141.42,141.39,10.4353967]
[1764247280950,3.83,141.42,141.39,8.72479192]
[1764247283964,3.83,141.42,141.39,7.22520634]
[1764247284163,3.83,141.42,141.39,10.4353967]
[1764247284557,3.83,141.42,141.39,7.07235725]
[1764247284756,3.83,141.42,141.39,10.4353967]
[1764247284970,3.36303945,141.44,141.4,3.36303945]
[1764247285176,3.12,141.44,141.43,3.36303945]
[1764247285387,3.12,141.44,141.42,3.36303945]
[1764247286982,3.12,141.44,141.42,9.06199913]
[1764247287766,3.83,141.44,141.42,9.06199913]
[1764247288790,3.83,141.44,141.41,10.43445637]
[1764247290189,0.88357955,141.47,141.42,3.36303945]
[1764247290367,5.23,141.46,141.42,3.36303945]
[1764247290885,0.71,141.45,141.42,3.36303945]
[1764247292395,0.71,141.45,141.41,41.05937009]
[1764247292564,0.71,141.45,141.42,3.36303945]
[1764247292764,0.71,141.45,141.41,41.05937009]
[1764247292963,0.71,141.45,141.42,3.36303945]
[1764247293164,0.71,141.45,141.43,0.59321955]
[1764247293378,3.12,141.45,141.43,0.59321955]
[1764247293780,3.83,141.45,141.43,0.59321955]
[1764247293980,3.83,141.45,141.43,3.36303945]
[1764247295387,3.83,141.45,141.42,7.07077601]
[1764247295776,3.83,141.45,141.43,3.36303945]
[1764247296299,3.83,141.45,141.43,2.17094784]
[1764247297388,3.83,141.45,141.42,10.43381546]
[1764247297581,3.83,141.45,141.43,3.36303945]
[1764247297769,3.83,141.45,141.42,10.43381546]
[1764247298693,3.83,141.45,141.42,9.22205443]
[1764247299190,3.83,141.45,141.42,2.15127842]
[1764247299381,0.71,141.44,141.42,2.15127842]
[1764247300493,0.71,141.44,141.42,9.2219574]
[1764247302400,0.71,141.44,141.42,0.54357802]
[1764247302601,2.15127842,141.43,141.38,59.83265282]
[1764247302900,2.15127842,141.41,141.38,66.90567561]
[1764247303288,5.27127842,141.41,141.38,66.90567561]
[1764247305196,12.34295279,141.41,141.38,66.90567561]
[1764247305510,13.00295279,141.41,141.38,64.45573645]
[1764247305803,13.00295279,141.41,141.38,57.38271366]
[1764247306198,5.93127842,141.41,141.38,57.38271366]
[1764247306581,3.78,141.41,141.38,57.38271366]
[1764247306907,13.00299606,141.41,141.38,57.38271366]
[1764247307099,0.66,141.4,141.38,57.38271366]
[1764247307411,2.15127842,141.39,141.38,57.38271366]
[1764247307804,2.81127842,141.39,141.38,57.38271366]
[1764247308480,2.15127842,141.39,141.38,54.71659429]
[1764247308709,7.07263597,141.39,141.38,54.71659429]
[1764247309107,9.88391439,141.39,141.38,54.71659429]
[1764247309894,0.3,141.4,141.38,55.37659429]
[1764247310384,0.3,141.4,141.38,54.71659429]
[1764247311516,0.3,141.4,141.38,51.933819]
[1764247311690,10.19184443,141.41,141.38,51.933819]
[1764247311889,10.85184443,141.41,141.38,51.933819]
[1764247312387,10.19184443,141.41,141.38,51.933819]
[1764247312992,10.85184443,141.41,141.38,51.933819]
[1764247313192,10.85184443,141.41,141.38,54.74509742]
[1764247313193,10.19184443,141.41,141.38,54.74509742]
[1764247314416,10.19184443,141.41,141.38,54.08509742]
[1764247314617,10.19184443,141.41,141.38,52.04209512]
[1764247314913,7.07184443,141.41,141.39,0.66]
[1764247315086,10.19184443,141.41,141.38,52.70209512]
[1764247315293,3.12,141.41,141.38,52.70209512]
[1764247316422,10.19168335,141.41,141.38,52.70209512]
[1764247317602,10.19168335,141.41,141.38,50.03601114]
[1764247318110,10.19168335,141.41,141.38,47.88473272]
[1764247318303,10.19168335,141.41,141.38,47.22473272]
[1764247318912,10.85168335,141.41,141.38,47.88473272]
[1764247319531,7.73168335,141.41,141.38,47.88473272]
[1764247320236,7.0713053,141.42,141.39,2.81127842]
[1764247320413,7.7313053,141.42,141.39,2.81127842]
[1764247320607,7.73076595,141.43,141.39,0.56165445]
[1764247320916,7.07035152,141.44,141.41,2.15127842]
[1764247321223,7.73035152,141.44,141.41,2.15127842]
[1764247323021,0.66,141.44,141.41,9.22277495]
[1764247323220,0.66,141.44,141.41,7.07149653]
[1764247323527,0.66,141.44,141.42,2.15127842]
[1764247323725,0.66,141.44,141.42,0.5073904]
[1764247324827,0.66,141.44,141.41,7.07149653]
[1764247325027,0.66,141.44,141.42,2.15127842]
[1764247325243,0.66,141.46,141.43,2.15127842]
[1764247325410,0.66,141.46,141.44,2.15127842]
[1764247325612,7.72819848,141.48,141.44,2.15127842]
[1764247325818,0.66,141.47,141.44,2.15127842]
[1764247326119,7.728875,141.47,141.43,9.22191407]
[1764247326318,2.15127842,141.44,141.4,8.80994492]
[1764247326526,16.33398868,141.47,141.38,47.22473272]
[1764247326527,2.15127842,141.43,141.39,2.15127842]
[1764247326733,2.15127842,141.44,141.39,9.02849559]
[1764247326923,2.81127842,141.44,141.4,2.15127842]
[1764247327128,0.66,141.43,141.4,2.15127842]
[1764247327331,0.66,141.44,141.41,2.15127842]
[1764247328421,0.66,141.44,141.41,9.22253123]
[1764247328619,9.88145721,141.44,141.39,15.8821574]
[1764247328928,9.88145721,141.44,141.39,35.71502574]
[1764247329244,0.66,141.43,141.39,35.71502574]
[1764247329447,0.66,141.43,141.4,2.15127842]
[1764247329878,0.66,141.43,141.39,33.56374732]
[1764247330049,0.66,141.43,141.39,35.71502574]
[1764247331014,0.67,141.45,141.41,2.15127842]
[1764247331327,2.82127842,141.45,141.4,2.15127842]
[1764247332518,2.82127842,141.45,141.41,7.07163566]
[1764247332753,0.67,141.44,141.41,7.07163566]
[1764247333148,0.67,141.44,141.41,5.48176247]
[1764247334534,0.67,141.44,141.4,7.07213578]
[1764247334726,0.67,141.44,141.4,26.90375366]
[1764247335042,2.82127842,141.44,141.4,7.07213578]
[1764247335547,0.67,141.43,141.4,7.07213578]
[1764247336151,0.67,141.43,141.4,5.93897158]
[1764247338445,0.67,141.43,141.4,8.09025]
[1764247338656,0.67,141.43,141.39,9.22391439]
[1764247339325,0.67,141.43,141.39,2.15127842]
[1764247339529,0.67,141.43,141.4,2.15127842]
[1764247339730,42.91666798,141.46,141.41,2.15127842]
[1764247339731,0.67,141.45,141.41,2.15127842]
[1764247339933,5.94127842,141.45,141.4,2.15127842]
[1764247340337,2.82127842,141.44,141.39,26.90550431]
[1764247340643,9.89155562,141.44,141.39,26.90550431]
[1764247340850,2.15127842,141.42,141.38,47.22473272]
[1764247341051,2.15127842,141.41,141.38,47.22473272]
[1764247341453,0.67,141.4,141.38,47.22473272]
[1764247342245,0.67,141.4,141.38,45.78540907]
[1764247344256,0.67,141.4,141.38,55.00980154]
[1764247345038,0.67,141.4,141.38,45.78540907]
[1764247345462,0.67,141.4,141.38,42.99775369]
[1764247345647,0.67,141.4,141.38,42.49775369]
[1764247348465,0.67,141.4,141.38,39.65098527]
[1764247349268,2.82127842,141.4,141.38,39.65098527]
[1764247349969,0.67,141.39,141.38,39.65098527]
[1764247351448,0.67,141.39,141.38,37.92224354]
[1764247353264,7.74263597,141.39,141.38,37.92224354]
[1764247354546,7.74263597,141.39,141.38,36.21873256]
[1764247354872,0.67,141.39,141.38,36.21873256]
[1764247357667,0.67,141.39,141.38,35.14296691]
[1764247358372,3.79,141.4,141.38,35.14296691]
[1764247358973,0.67,141.39,141.38,35.14296691]
[1764247359899,3.12,141.41,141.38,35.14296691]
[1764247360084,0.67,141.4,141.38,35.14296691]
[1764247360655,0.67,141.4,141.38,40.06267974]
[1764247361356,0.67,141.4,141.38,32.98958131]
[1764247361968,10.43597176,141.41,141.38,32.98958131]
[1764247362172,14.22597176,141.41,141.38,32.98958131]
[1764247362751,0.67,141.4,141.38,32.98958131]
[1764247363674,0.67,141.4,141.38,30.3571607]
[1764247366771,0.67,141.4,141.38,29.31104857]
[1764247367175,7.74219421,141.4,141.38,29.31104857]
[1764247367484,0.67,141.4,141.38,29.31104857]
[1764247368377,11.10648287,141.4,141.38,29.31104857]
[1764247368777,0.67,141.39,141.38,29.31104857]
[1764247369577,11.10608617,141.41,141.38,29.31104857]
[1764247369758,3.79,141.4,141.38,26.61857872]
[1764247371085,0.3,141.42,141.38,33.69171325]
[1764247371293,3.79,141.41,141.38,33.69171325]
[1764247372491,0.67,141.4,141.38,33.69171325]
[1764247372891,0.67,141.4,141.38,31.78049302]
[1764247375165,7.74178142,141.41,141.38,31.78049302]
[1764247375774,0.67,141.4,141.38,31.78049302]
[1764247376074,0.67,141.4,141.38,29.69250532]
[1764247378699,0.67,141.4,141.38,22.61937079]
[1764247378992,0.67,141.4,141.38,20.22500588]
[1764247380581,7.74221289,141.4,141.38,20.22500588]
[1764247380896,11.10642266,141.4,141.38,20.22500588]
[1764247381095,0.67,141.39,141.38,20.22500588]
[1764247382096,0.67,141.39,141.38,17.50646071]
[1764247385098,0.67,141.39,141.38,14.65385238]
[1764247387297,11.10684574,141.39,141.38,14.65385238]
[1764247388080,11.10684574,141.39,141.38,12.81626756]
[1764247389082,11.60684574,141.39,141.38,12.81626756]
[1764247391278,11.60684574,141.39,141.38,10.24325585]
[1764247394296,11.60684574,141.39,141.38,7.91494058]
[1764247396990,14.72684574,141.39,141.38,7.91494058]
[1764247397381,14.72684574,141.39,141.38,5.16892867]
[1764247397795,15.02684574,141.39,141.38,5.16892867]
[1764247398798,14.72684574,141.39,141.38,5.16892867]
[1764247400507,14.72684574,141.39,141.38,3.30649259]
[1764247402485,35.97857244,141.39,141.38,3.30649259]
[1764247402680,35.97857244,141.39,141.34,75.35885167]
[1764247402913,3.36420977,141.35,141.34,75.35885167]
[1764247403123,0.5,141.39,141.35,8.80994492]
[1764247403409,3.36420977,141.38,141.34,84.25718466]
[1764247403619,4.02420977,141.39,141.34,84.25718466]
[1764247404286,4.02420977,141.39,141.34,101.94502957]
[1764247404598,3.12,141.39,141.35,3.36420977]
[1764247404963,3.12,141.4,141.37,7.07363655]
[1764247405091,7.73164789,141.41,141.37,10.43784632]
[1764247405407,14.21585766,141.41,141.37,10.43784632]
[1764247405797,7.14420977,141.41,141.37,10.43784632]
[1764247406005,3.12,141.41,141.37,10.43784632]
[1764247406307,11.09557227,141.42,141.37,10.43784632]
[1764247406506,4.02420977,141.42,141.37,28.12193771]
[1764247406709,3.78,141.42,141.37,21.04830116]
[1764247406893,7.14420977,141.42,141.37,21.04830116]
[1764247407608,7.07094665,141.43,141.39,3.36420977]
[1764247407788,3.12,141.42,141.39,3.36420977]
[1764247408500,7.14420977,141.42,141.38,3.36420977]
[1764247408896,7.14420977,141.42,141.38,10.43724162]
[1764247408897,10.85119024,141.42,141.38,10.43724162]
[1764247409096,14.21540001,141.42,141.38,10.43724162]
[1764247409724,14.21536521,141.42,141.38,10.43724162]
[1764247412021,4.02420977,141.41,141.37,21.04830116]
[1764247412318,0.66,141.41,141.38,3.36420977]
[1764247412493,0.66,141.41,141.37,17.68409139]
[1764247412693,0.66,141.41,141.38,3.36420977]
[1764247413105,0.66,141.41,141.38,8.65561106]
[1764247413300,0.66,141.41,141.38,7.07306857]
[1764247414419,11.09591954,141.41,141.37,10.43767023]
[1764247415824,10.43591954,141.41,141.37,10.43767023]
[1764247416017,0.66,141.4,141.37,7.07346046]
[1764247416224,0.66,141.4,141.36,12.17415469]
[1764247416734,0.66,141.4,141.35,20.80594837]
[1764247416919,11.09637728,141.4,141.36,3.36420977]
[1764247417428,0.66,141.39,141.36,3.36420977]
[1764247417809,10.85271895,141.39,141.36,7.07413695]
[1764247418015,14.21692872,141.39,141.35,12.17415469]
[1764247418214,0.66,141.38,141.35,12.17415469]
[1764247418538,0.66,141.38,141.35,19.24859219]
[1764247419332,0.66,141.38,141.35,10.43864727]
[1764247420735,0.66,141.38,141.35,7.0744375]
[1764247421727,9.88689789,141.38,141.34,80.89297837]
[1764247422125,0.66,141.37,141.34,80.89297837]
[1764247422321,0.66,141.37,141.34,79.61887]
[1764247424645,3.78,141.39,141.35,2.15369511]
[1764247424816,0.66,141.38,141.35,2.15369511]
[1764247425015,0.66,141.38,141.34,81.77256511]
[1764247425328,0.66,141.38,141.34,79.15651704]
[1764247426338,8.23356238,141.38,141.34,79.15651704]
[1764247426739,0.66,141.37,141.34,79.15651704]
[1764247426914,10.38725749,141.38,141.34,79.15651704]
[1764247427114,9.88725749,141.38,141.34,79.15651704]
[1764247427740,0.66,141.37,141.34,77.00282193]
[1764247428639,0.66,141.37,141.34,74.99719658]
[1764247428837,0.66,141.37,141.34,77.15089169]
[1764247431646,0.66,141.37,141.34,75.46940196]
[1764247433740,0.66,141.37,141.34,73.31570685]
[1764247433924,0.66,141.37,141.34,75.46940196]
[1764247434834,0.66,141.37,141.34,74.46662537]
[1764247435342,3.78,141.38,141.34,74.46662537]
[1764247435539,0.66,141.37,141.34,74.46662537]
[1764247435736,0.66,141.4,141.36,2.15369511]
[1764247436041,0.66,141.39,141.36,2.15369511]
[1764247437833,0.66,141.39,141.37,7.07363655]
[1764247438143,0.66,141.39,141.36,7.07399401]
[1764247438323,2.81369511,141.39,141.36,7.07399401]
[1764247438523,0.66,141.39,141.36,9.22768912]
[1764247438824,0.66,141.39,141.36,7.07399401]
[1764247439019,0.66,141.39,141.36,9.22768912]
[1764247441051,0.66,141.39,141.36,2.15369511]
[1764247441449,2.81369511,141.39,141.35,17.68607667]
[1764247441628,2.81369511,141.39,141.35,19.83977178]
[1764247442332,0.66,141.38,141.35,19.83977178]
[1764247442532,0.66,141.38,141.35,26.9144092]
[1764247443251,0.66,141.38,141.35,24.76071409]
[1764247443453,0.66,141.38,141.35,26.9144092]
[1764247443833,0.66,141.38,141.35,25.17872657]
[1764247447265,0.66,141.38,141.35,9.22833253]
[1764247448665,0.66,141.38,141.35,26.9144092]
[1764247450160,0.66,141.38,141.35,23.38032141]
[1764247450459,0.66,141.38,141.35,25.53401652]
[1764247451161,0.66,141.38,141.36,2.15369511]
[1764247452658,0.69,141.4,141.37,2.15369511]
[1764247452863,0.99,141.41,141.38,2.15369511]
[1764247453038,0.69,141.4,141.37,2.15369511]
[1764247454247,2.84369511,141.4,141.36,26.91275925]
[1764247454564,2.84369511,141.4,141.36,7.07372176]
[1764247454752,0.69,141.39,141.36,7.07372176]
[1764247455057,2.84369511,141.39,141.36,7.07372176]
[1764247455467,0.69,141.38,141.36,7.07372176]
[1764247455757,2.84369511,141.38,141.35,3.12]
[1764247455958,2.84369511,141.38,141.34,74.46629685]
[1764247456164,0.69,141.37,141.34,74.46629685]
[1764247456461,0.69,141.37,141.34,70.15228531]
[1764247456863,0.69,141.37,141.34,72.30598042]
[1764247458665,0.69,141.37,141.34,70.15228531]
[1764247459243,7.76377507,141.37,141.34,70.15228531]
[1764247459445,0.69,141.37,141.34,69.89680686]
[1764247459647,0.69,141.36,141.34,69.89680686]
[1764247461572,0.69,141.37,141.34,69.89680686]
[1764247462460,0.69,141.37,141.34,67.47592712]
[1764247465476,0.69,141.37,141.34,65.55076684]
[1764247466771,0.69,141.37,141.34,58.47607321]
[1764247466979,0.69,141.37,141.34,65.55117877]
[1764247467986,0.69,141.37,141.34,63.39748366]
[1764247468475,0.69,141.37,141.34,62.18333875]
[1764247470181,7.763662,141.37,141.34,62.18333875]
[1764247470779,3.12,141.39,141.34,62.18333875]
[1764247470780,0.69,141.41,141.36,2.15369511]
[1764247470980,7.76170426,141.41,141.37,9.22733166]
[1764247471173,2.15369511,141.38,141.34,55.10823319]
[1764247471678,0.69,141.37,141.34,53.66282429]
[1764247472255,0.69,141.37,141.34,60.73765274]
[1764247474665,0.69,141.37,141.34,58.69330864]
[1764247477693,0.69,141.37,141.34,57.03501565]
[1764247479886,2.84369511,141.37,141.34,57.03501565]
[1764247480682,2.84369511,141.37,141.34,54.12487677]
[1764247480887,0.69,141.36,141.34,54.12487677]
[1764247483566,0.69,141.36,141.34,47.05004832]
[1764247483772,0.69,141.36,141.34,45.02062219]
[1764247484168,0.69,141.36,141.34,52.09569793]
[1764247484585,0.69,141.36,141.34,45.02062219]
[1764247486468,4.05580011,141.36,141.34,45.02062219]
[1764247486992,0.69,141.35,141.34,42.79123588]
[1764247489999,0.69,141.35,141.34,40.13384057]
[1764247493298,0.69,141.35,141.34,37.46661244]
[1764247496094,0.69,141.35,141.34,34.95902387]
[1764247498797,4.05580011,141.35,141.34,34.95902387]
[1764247499001,0.69,141.35,141.34,34.95902387]
[1764247499203,0.69,141.35,141.34,33.79380671]